{"text_format":"3","workbook":"xlsx","n_sheets":2,"sheets":["PREAMBLE"," BOQ"],"read":"whole","date_system":"1900"}

{"sheet":"PREAMBLE","index":0,"n_rows":5,"n_cols":2,"rows_kept":5}
[]
["PREAMBLES"]
[]
[null,"The contract price shall be based upon the quantities taken off from the Bills of Quantities (BOQ). Eskom Rotek Industries shall provide necessary office space where required."]
[null,"Disbursements in respect of all travelling and related expenses including all travelling costs, accomodation and subsistence allowances related thereto will be paid for separately."]

{"sheet":" BOQ","index":1,"n_rows":41,"n_cols":6,"rows_kept":41}
[]
["CS Professional Services Contract "]
[]
["Item","The contract price shall be based upon the quantities taken off from the Bills of Quantities (BOQ). Eskom Rotek Industries shall provide necessary office space where required.","Unit","Total Hrs","Rate","Amount"]
[]
[1,"Senior Project Manager ","Hour",{"$f":"1952*3","v":5856},null,{"$f":"D6*E6","v":0}]
[2,"Project Manager","Hour",{"$f":"1952*3","v":5856},null,{"$f":"D7*E7","v":0}]
[3,"Construction Manager","Hour",{"$f":"1952*3","v":5856},null,0]
[4,"Contracts Manager ","Hour",5856,null,0]
[5,"Senior Quantity Surveyor ","Hour",5856,null,0]
[6,"Quantity Surveyor ","Hour",5856,null,0]
[7,"Land Surveyor ","Hour",5856,null,0]
[8,"Senior Project Planner ","Hour",5856,null,0]
[9,"Project Planner ","Hour",5856,null,0]
[10,"Architect","Hour",5856,null,0]
[11,"Draughtsmen","Hour",5856,null,0]
[12,"Geotechnical Engineeer ","Hour",5856,null,0]
[13,"Civil Engineer","Hour",5856,null,0]
[14,"Structural Engineer","Hour",5856,null,0]
[15,"Electrical Engineer","Hour",5856,null,0]
[16,"Mechanical Engineer","Hour",5856,null,0]
[17,"Senior Site Supervisors ","Hour",5856,null,0]
[18,"Site Supervisor ","Hour",5856,null,0]
[19,"Senior Safety Officer ","Hour",5856,null,0]
[20,"Safety Officer ","Hour",5856,null,0]
[21,"Junior Safety Officer ","Hour",5856,null,0]
[22,"Quality Controllers ","Hour",5856,null,0]
[23,"Commisioning Engineer","Hour",5856,null,0]
[24,"Project Controls","Hour",5856,null,0]
[25,"Fire Protection Engineer","Hour",5856,null,0]
[26,"Design Engineers","Hour",5856,null,0]
[]
[27,"Sub-total"]
[]
[28,"Dirsbursement","Prov Sum"]
[]
[29,"Sub-total Amount"]
[]
[30,"Value Added Tax (15%)"]
[]
[31,"Grand Total"]